fUST/lending_fUST_20250529
["ID","MTS","AMOUNT","RATE_DAILY","PERIOD"]
[362895717,1748514636422,-1247.4931142,0.00023479,2]
[362895718,1748514636431,-158.3971896,0.00023479,2]
[362895719,1748514636441,-572.078714,0.00023479,2]
[362895720,1748514636544,-158.3971896,0.00023479,2]
[362895721,1748514636553,-572.078714,0.00023479,2]
[362895722,1748514636562,-158.3971896,0.00023479,2]
[362895723,1748514636572,-572.078714,0.00023479,2]
[362895724,1748514636581,-157.0348685,0.00023479,2]
[362895725,1748514636589,-386.3833811,0.00023479,2]
[362895726,1748514636599,-2000.0,0.000235,5]
[362895727,1748514636611,-60673.7849054,0.000235,2]
[362895728,1748514636621,-314.390548,0.0002352,3]
[362895729,1748514636630,-158.448493,0.0002352,30]
[362895730,1748514636639,-740.58,0.00023561,2]
[362895731,1748514636650,-500.0,0.00023572,9]
[362895732,1748514636659,-151.28645415,0.00023783,2]
[362895733,1748514636668,-215.0738,0.00023793,2]
[362895734,1748514636677,-740.58,0.00023835,2]
[362895735,1748514636687,-367.19106154,0.00023973,2]
[362895736,1748514636696,-7171.42468505,0.00024,60]
[362895769,1748514637670,-430.0,0.00019178,2]
[362895771,1748514637682,-70.0,0.00019223,2]
[362895777,1748514637724,-4930.0,0.00019223,2]
[362895779,1748514637734,-430.0,0.00019417,2]
[362895781,1748514637744,-430.0,0.00019452,2]
[362895783,1748514637753,-500.0,0.00019689,2]
[362895785,1748514637763,-424.62533464,0.00019689,2]
[362895787,1748514637773,-637.81444828,0.00019689,2]
[362895789,1748514637783,-445.36022708,0.00019689,2]
[362895791,1748514637796,-54.63977292,0.00019689,2]
[362895793,1748514637805,-500.0,0.00019689,2]
[362895795,1748514637814,-500.0,0.00019689,2]
[362895798,1748514637828,-500.0,0.00019689,2]
[362895801,1748514637837,-350.38290395,0.00019689,2]
[362895804,1748514637846,-500.0,0.00019689,2]
[362895807,1748514637856,-500.0,0.00019689,2]
[362895809,1748514637865,-412.00729693,0.00019689,2]
[362896003,1748514639892,-430.0,0.00019178,2]
[362896005,1748514639902,-430.0,0.00019452,2]
[362896007,1748514639911,-87.99270307,0.00019689,2]
[362896009,1748514639921,-445.9567602,0.00019689,2]
[362896322,1748514642862,-54.0432398,0.00019689,2]
[362896323,1748514642871,-500.0,0.00019689,2]
[362896324,1748514642880,-40.8718379,0.00019689,2]
[362896326,1748514642893,-459.1281621,0.00019689,2]
[362896329,1748514642902,-430.0,0.00019726,2]
[362896331,1748514642911,-189.31585492,0.000239,2]
[362896333,1748514642920,-31214.89862541,0.00024,60]
[362896336,1748514642931,-336207.71096848,0.00024,60]
[362896338,1748514642940,-151.0,0.00024,7]
[362896339,1748514642950,-258.543279,0.00024,7]
[362896340,1748514642959,-151.0,0.00024,7]
[362896341,1748514642968,-151.0,0.00024,7]
[362896342,1748514642978,-151.0,0.00024,7]
[362896343,1748514642987,-151.0,0.00024,7]
[362896344,1748514642996,-151.0,0.00024,7]
[362896345,1748514643006,-151.0,0.00024,7]
[362896346,1748514643015,-151.0,0.00024,7]
[362896347,1748514643024,-151.0,0.00024,7]
[362896349,1748514643034,-288.567537,0.00024,7]
[362896351,1748514643043,-151.0,0.00024,7]
[362896353,1748514643053,-151.0,0.00024,7]
[362896355,1748514643062,-151.0,0.00024,7]
[362896357,1748514643071,-151.0,0.00024,7]
[362896358,1748514643081,-151.0,0.00024,7]
[362896360,1748514643090,-151.0,0.00024,7]
[362896362,1748514643099,-151.0,0.00024,7]
[362896364,1748514643109,-151.826503,0.00024,7]
[362896367,1748514643119,-2465.71,0.00024,7]
[362896369,1748514643129,-79360.01,0.00024,7]
[362896371,1748514643138,-2077.27,0.00024,2]
[362896373,1748514643147,-151.0,0.00024,7]
[362896375,1748514643157,-151.0,0.00024,7]
[362896377,1748514643166,-3000.00000099,0.00024,5]
[362896379,1748514643175,-1003.69,0.00024,7]
[362896381,1748514643186,-156.2,0.00024,2]
[362896383,1748514643196,-12660.97845086,0.00024,30]
[362896385,1748514643205,-345707.83032641,0.00024033,2]
[362896387,1748514643215,-151.0,0.00024033,7]
[362896389,1748514643224,-151.0,0.00024033,7]
[362896391,1748514643234,-151.0,0.00024033,7]
[362896393,1748514643243,-151.0,0.00024033,7]
[362896395,1748514643253,-151.0,0.00024033,7]
[362896397,1748514643262,-151.0,0.00024033,7]
[362896398,1748514643271,-151.0,0.00024033,7]
[362896400,1748514643281,-151.0,0.00024033,7]
[362896402,1748514643290,-151.0,0.00024033,7]
[362896404,1748514643299,-1140.98633,0.0002408,15]
[362896406,1748514643308,-223.8525,0.00024109,2]
[362896408,1748514643317,-740.58,0.00024109,2]
[362896410,1748514643328,-1274.65765354,0.0002416,2]
[362896412,1748514643337,-740.58,0.00024383,2]
[362896414,1748514643347,-500.0,0.000244,2]
[362896416,1748514643357,-500.0,0.000244,2]
[362896418,1748514643367,-500.0,0.000244,2]
[362896420,1748514643377,-946.24185487,0.00024448,3]
[362896422,1748514643386,-7490.0,0.000245,7]
[362896424,1748514643395,-150.0,0.000245,2]
[362896426,1748514643405,-506.31,0.000246,14]
[362896428,1748514643414,-35668.22738179,0.0002465,30]
[362896430,1748514643423,-86754.71,0.0002465,2]
[362896432,1748514643432,-151.0,0.0002465,7]
[362896434,1748514643441,-151.0,0.0002465,7]
[362896436,1748514643450,-151.0,0.0002465,7]
[362896438,1748514643459,-151.0,0.0002465,7]
[362896440,1748514643467,-151.0,0.0002465,7]
[362896442,1748514643476,-151.0,0.0002465,7]
[362896444,1748514643485,-151.0,0.0002465,7]
[362896446,1748514643494,-151.0,0.0002465,7]
[362896448,1748514643502,-151.0,0.0002465,7]
[362896450,1748514643511,-151.0,0.0002465,7]
[362896452,1748514643520,-151.0,0.0002465,7]
[362896454,1748514643530,-151.0,0.0002465,7]
[362896456,1748514643539,-351.677337,0.0002465,7]
[362896458,1748514643548,-351.677337,0.0002465,7]
[362896460,1748514643558,-151.0,0.0002465,7]
[362896462,1748514643567,-524.242303,0.0002465,2]
[362896464,1748514643577,-524.242303,0.0002465,2]
[362896466,1748514643587,-151.0,0.0002465,7]
[362896468,1748514643596,-151.0,0.0002465,7]
[362896470,1748514643606,-157.694108,0.0002465,7]
[362896472,1748514643618,-157.694108,0.0002465,7]
[362896474,1748514643628,-151.0,0.0002465,7]
[362896476,1748514643637,-151.0,0.0002465,7]
[362896478,1748514643646,-222.734621,0.0002465,7]
[362896480,1748514643656,-222.734621,0.0002465,7]
[362896482,1748514643665,-236.506018,0.0002465,7]
[362896484,1748514643674,-236.506018,0.0002465,7]
[362896486,1748514643683,-151.0,0.0002465,7]
[362896488,1748514643694,-151.0,0.0002465,7]
[362896490,1748514643703,-151.0,0.0002465,7]
[362896492,1748514643713,-447.705,0.00024657,3]
[362896494,1748514643722,-740.58,0.00024657,2]
[362896496,1748514643732,-200.0,0.00024658,15]
[362896498,1748514643741,-230.49655489,0.00024658,2]
[362896500,1748514643751,-545.92368521,0.00024662,120]
[362896502,1748514643760,-206.0,0.0002468,2]
[362896504,1748514643769,-2000.0,0.000247,2]
[362896506,1748514643778,-2000.0,0.000247,2]
[362896508,1748514643787,-5000.0,0.00024761,2]
[362896510,1748514643796,-5000.0,0.00024782,2]
[362896512,1748514643805,-2906.76438252,0.000248,2]
[362896514,1748514643813,-200.0,0.00024818,120]
[362896516,1748514643823,-2906.76438248,0.00024821,2]
[362896518,1748514643832,-684.68,0.00024828,4]
[362896520,1748514643841,-2906.76438248,0.00024842,2]
[362896522,1748514643850,-160.0,0.0002485,3]
[362896524,1748514643859,-161.02783236,0.0002485,5]
[362896526,1748514643868,-2906.76438248,0.00024862,2]
[362896528,1748514643877,-2906.76438248,0.00024883,2]
[362896530,1748514643886,-120692.75613177,0.00024888,120]
[362896532,1748514643898,-179307.24386823,0.00024888,120]
[362896534,1748514643906,-154.810056,0.00024888,7]
[362896536,1748514643915,-151.0,0.00024888,7]
[362896538,1748514643924,-241.327562,0.00024888,7]
[362896540,1748514643934,-151.0,0.00024888,7]
[362896542,1748514643942,-151.0,0.00024888,7]
[362896544,1748514643951,-151.0,0.00024888,7]
[362896546,1748514643960,-151.0,0.00024888,7]
[362896548,1748514643968,-151.0,0.00024888,7]
[362896550,1748514643977,-165.381392,0.00024888,7]
[362896552,1748514643986,-165.381392,0.00024888,7]
[362896554,1748514643994,-151.0,0.00024888,7]
[362896556,1748514644003,-351.677337,0.00024888,7]
[362896558,1748514644012,-719.818589,0.00024888,7]
[362896560,1748514644021,-351.677337,0.00024888,7]
[362896562,1748514644030,-719.818589,0.00024888,7]
[362896564,1748514644039,-177.506068,0.00024888,7]
[362896566,1748514644048,-524.242303,0.00024888,2]
[362896568,1748514644056,-524.242303,0.00024888,2]
[362896570,1748514644065,-151.0,0.00024888,7]
[362896572,1748514644073,-191.800619,0.00024888,7]
[362896574,1748514644082,-191.800619,0.00024888,7]
[362896576,1748514644091,-166.816896,0.00024888,7]
[362896578,1748514644100,-157.694108,0.00024888,7]
[362896580,1748514644108,-157.694108,0.00024888,7]
[362896582,1748514644117,-151.0,0.00024888,7]
[362896584,1748514644126,-262.225838,0.00024888,7]
[362896586,1748514644134,-222.734621,0.00024888,7]
[362896587,1748514644143,-222.734621,0.00024888,7]
[362896589,1748514644152,-236.506018,0.00024888,7]
[362896591,1748514644160,-236.506018,0.00024888,7]
[362896593,1748514644170,-151.0,0.00024888,7]
[362896595,1748514644179,-151.0,0.00024888,7]
[362896597,1748514644187,-158.390414,0.00024888,7]
[362896599,1748514644197,-10000.0,0.000249,30]
[362896601,1748514644206,-151.0,0.000249,7]
[362896603,1748514644215,-151.0,0.000249,7]
[362896605,1748514644223,-151.0,0.000249,7]
[362896607,1748514644232,-151.0,0.000249,7]
[362896609,1748514644241,-151.0,0.000249,7]
[362896611,1748514644250,-151.0,0.000249,7]
[362896613,1748514644259,-152.190512,0.000249,7]
[362896615,1748514644268,-151.0,0.000249,7]
[362896628,1748514644276,-151.0,0.000249,7]
[362896630,1748514644383,-160.408077,0.000249,7]
[362896632,1748514644393,-151.0,0.000249,7]
[362896634,1748514644403,-793.454614,0.000249,7]
[362896636,1748514644411,-151.0,0.000249,7]
[362896638,1748514644421,-415.895459,0.000249,7]
[362896640,1748514644430,-151.0,0.000249,7]
[362896642,1748514644439,-151.0,0.000249,7]
[362896644,1748514644449,-151.417114,0.000249,7]
[362896646,1748514644458,-151.0,0.000249,7]
[362896648,1748514644468,-151.0,0.000249,7]
[362896650,1748514644477,-151.0,0.000249,7]
[362896652,1748514644487,-165.381392,0.000249,7]
[362896654,1748514644496,-165.381392,0.000249,7]
[362896656,1748514644505,-157.95,0.000249,31]
[362896658,1748514644515,-157.95,0.000249,31]
[362896660,1748514644524,-157.95,0.000249,31]
[362896662,1748514644534,-157.95,0.000249,31]
[362896664,1748514644544,-157.95,0.000249,31]
[362896666,1748514644553,-157.95,0.000249,31]
[362896668,1748514644561,-157.95,0.000249,31]
[362896670,1748514644570,-157.95,0.000249,31]
[362896672,1748514644580,-157.95,0.000249,31]
[362896674,1748514644588,-157.95,0.000249,31]
[362896676,1748514644597,-157.95,0.000249,31]
[362896678,1748514644608,-157.95,0.000249,31]
[362896680,1748514644617,-157.95,0.000249,31]
[362896682,1748514644626,-157.95,0.000249,31]
[362896684,1748514644635,-157.95,0.000249,31]
[362896686,1748514644644,-157.95,0.000249,31]
[362896688,1748514644656,-151.0,0.000249,7]
[362896690,1748514644665,-351.677337,0.000249,7]
[362896692,1748514644673,-719.818589,0.000249,7]
[362896694,1748514644683,-351.677337,0.000249,7]
[362896696,1748514644692,-719.818589,0.000249,7]
[362896698,1748514644701,-524.242303,0.000249,2]
[362896700,1748514644710,-524.242303,0.000249,2]
[362896702,1748514644718,-151.0,0.000249,7]
[362896704,1748514644728,-191.800619,0.000249,7]
[362896706,1748514644737,-191.800619,0.000249,7]
[362896708,1748514644746,-157.694108,0.000249,7]
[362896710,1748514644754,-157.694108,0.000249,7]
[362896712,1748514644763,-151.0,0.000249,7]
[362896714,1748514644771,-607729.784247,0.000249,2]
[362896716,1748514644781,-242.4368013,0.000249,12]
[362896718,1748514644790,-222.734621,0.000249,7]
[362896720,1748514644799,-151.28645415,0.000249,2]
[362896722,1748514644807,-222.734621,0.000249,7]
[362896724,1748514644816,-236.506018,0.000249,7]
[362896726,1748514644826,-236.506018,0.000249,7]
[362896728,1748514644835,-151.0,0.000249,7]
[362896729,1748514644844,-1274.65765354,0.000249,2]
[362896731,1748514644852,-151.0,0.000249,7]
[362896733,1748514644861,-2906.76438248,0.00024904,2]
[362896735,1748514644870,-250.0,0.0002491,2]
[362896737,1748514644879,-2906.76438248,0.00024925,2]
[362896739,1748514644888,-740.58,0.00024931,2]
[362896741,1748514644897,-2906.76438248,0.00024945,2]
[362896743,1748514644906,-208595.73,0.0002495,60]
[362896745,1748514644914,-151.0,0.0002495,7]
[362896747,1748514644923,-151.0,0.0002495,7]
[362896749,1748514644932,-151.0,0.0002495,7]
[362896751,1748514644941,-151.0,0.0002495,7]
[362896753,1748514644951,-151.0,0.0002495,7]
[362896755,1748514644961,-793.454614,0.0002495,7]
[362896757,1748514644970,-151.0,0.0002495,7]
[362896759,1748514644979,-415.895459,0.0002495,7]
[362896761,1748514644988,-210.806482,0.0002495,7]
[362896763,1748514644997,-151.0,0.0002495,7]
[362896765,1748514645006,-151.0,0.0002495,7]
[362896767,1748514645015,-151.0,0.0002495,7]
[362896769,1748514645025,-151.0,0.0002495,7]
[362896771,1748514645034,-165.381392,0.0002495,7]
[362896773,1748514645044,-165.381392,0.0002495,7]
[362896775,1748514645055,-151.0,0.0002495,7]
[362896777,1748514645064,-351.677337,0.0002495,7]
[362896779,1748514645073,-719.818589,0.0002495,7]
[362896781,1748514645083,-351.677337,0.0002495,7]
[362896783,1748514645092,-719.818589,0.0002495,7]
[362896785,1748514645102,-524.242303,0.0002495,2]
[362896787,1748514645112,-524.242303,0.0002495,2]
[362896789,1748514645122,-151.0,0.0002495,7]
[362896791,1748514645132,-191.800619,0.0002495,7]
[362896793,1748514645141,-191.800619,0.0002495,7]
[362896795,1748514645150,-157.694108,0.0002495,7]
[362896797,1748514645161,-157.694108,0.0002495,7]
[362896799,1748514645171,-151.0,0.0002495,7]
[362896801,1748514645180,-222.734621,0.0002495,7]
[362896804,1748514645190,-222.734621,0.0002495,7]
[362896805,1748514645200,-236.506018,0.0002495,7]
[362896807,1748514645210,-236.506018,0.0002495,7]
[362896809,1748514645219,-151.0,0.0002495,7]
[362896811,1748514645228,-151.0,0.0002495,7]
[362896813,1748514645238,-2906.76438248,0.00024966,2]
[362896815,1748514645249,-2906.76438248,0.00024987,2]
[362896817,1748514645258,-590.91675766,0.00025,2]
[362896820,1748514645268,-834.86907599,0.00025,3]
[362896822,1748514645278,-205805.53628244,0.00025,30]
[362896879,1748514645907,-433.02518861,0.00024658,2]
[362896880,1748514645916,-22142.50999328,0.00025,30]
[362896909,1748514646220,-7249.62179986,0.00025,30]
[362896912,1748514646234,-526.97,0.00025,30]
[362897627,1748514914385,183.502391,0.00013699,2]
[362897628,1748515117147,2000.000001,0.00024658,120]
[362897630,1748515576241,1906.0,0.000246,120]
[362897631,1748515586722,18000.0,0.00024658,120]
[362897632,1748515624212,2017.95797301,0.00022,30]
[362897667,1748515831938,-1347.32928884,0.00017881,2]
[362897684,1748515832047,-3652.67071116,0.00017881,2]
[362897686,1748515832056,-150.63,0.00018062,2]
[362897688,1748515832066,-167.37,0.00018685,2]
[362897690,1748515832075,-794.51798458,0.000189,2]
[362897692,1748515832085,-178.28995814,0.00019078,2]
[362897694,1748515832095,-794.51798457,0.00019107,2]
[362897696,1748515832104,-614.07,0.00019168,3]
[362897698,1748515832115,-300.0,0.00019169,2]
[362897700,1748515832126,-5000.0,0.0001917,2]
[362897702,1748515832135,-500.0,0.00019173,2]
[362897704,1748515832146,-500.81146006,0.00019173,2]
[362897706,1748515832155,-501.7458096,0.00019173,2]
[362897708,1748515832164,-500.0,0.00019173,2]
[362897710,1748515832174,-500.0,0.00019176,2]
[362897712,1748515832183,-500.0,0.00019176,2]
[362897714,1748515832193,-500.0,0.00019176,2]
[362897716,1748515832203,-500.0,0.00019176,2]
[362897718,1748515832212,-500.0,0.00019176,2]
[362897719,1748515832222,-500.0,0.00019176,2]
[362897720,1748515832233,-500.0,0.00019176,2]
[362897721,1748515832243,-500.0,0.00019176,2]
[362897722,1748515832253,-500.0,0.00019176,2]
[362897723,1748515832262,-500.0,0.00019176,2]
[362897724,1748515832272,-500.0,0.00019176,2]
[362897725,1748515832282,-500.0,0.00019176,2]
[362897726,1748515832292,-500.0,0.00019176,2]
[362897727,1748515832302,-500.0,0.00019176,2]
[362897728,1748515832311,-500.0,0.00019176,2]
[362897729,1748515832321,-500.0,0.00019176,2]
[362897730,1748515832331,-500.0,0.00019176,2]
[362897731,1748515832340,-500.0,0.00019176,2]
[362897732,1748515832350,-500.0,0.00019176,2]
[362897733,1748515832359,-500.0,0.00019176,2]
[362897734,1748515832369,-500.0,0.00019176,2]
[362897735,1748515832378,-500.0,0.00019176,2]
[362897736,1748515832387,-500.0,0.00019176,2]
[362897737,1748515832399,-500.0,0.00019176,2]
[362897738,1748515832408,-500.0,0.00019176,2]
[362897739,1748515832418,-500.0,0.00019176,2]
[362897740,1748515832428,-500.0,0.00019176,2]
[362897741,1748515832438,-209.68968296,0.00019176,2]
[362897742,1748515832448,-500.0,0.00019176,2]
[362897743,1748515832458,-500.0,0.00019176,2]
[362897744,1748515832468,-500.0,0.00019176,2]
[362897745,1748515832478,-454.56759325,0.00019176,2]
[362897746,1748515832487,-500.0,0.00019176,2]
[362897747,1748515832498,-152.56252771,0.00019176,2]
[362897748,1748515832507,-500.0,0.00019176,2]
[362897749,1748515832517,-500.0,0.00019176,2]
[362897750,1748515832527,-500.0,0.00019176,2]
[362897751,1748515832536,-500.0,0.00019176,2]
[362897752,1748515832547,-500.0,0.00019176,2]
[362897753,1748515832557,-500.0,0.00019177,2]
[362897754,1748515832568,-500.0,0.00019177,2]
[362897755,1748515832578,-500.0,0.00019177,2]
[362897756,1748515832588,-419.20892301,0.00019177,2]
[362897757,1748515832598,-500.0,0.00019177,2]
[362897758,1748515832608,-345.15061964,0.00019177,2]
[362897759,1748515832618,-500.0,0.00019177,2]
[362897760,1748515832628,-500.0,0.00019177,2]
[362897761,1748515832638,-500.0,0.00019177,2]
[362897762,1748515832647,-500.0,0.00019177,2]
[362897763,1748515832657,-500.0,0.00019177,2]
[362897764,1748515832668,-500.0,0.00019177,2]
[362897765,1748515832678,-500.0,0.00019177,2]
[362897766,1748515832687,-500.0,0.00019177,2]
[362897767,1748515832696,-622.89321112,0.00019177,2]
[362897768,1748515832706,-500.0,0.00019177,2]
[362897769,1748515832715,-500.0,0.00019177,2]
[362897770,1748515832725,-500.0,0.00019177,2]
[362897771,1748515832734,-500.0,0.00019177,2]
[362897772,1748515832743,-500.0,0.00019177,2]
[362897773,1748515832753,-500.0,0.00019177,2]
[362897774,1748515832763,-500.0,0.00019177,2]
[362897775,1748515832773,-500.0,0.00019177,2]
[362897776,1748515832782,-300.0,0.00019177,2]
[362897777,1748515832791,-430.0,0.00019178,2]
[362897778,1748515832801,-430.0,0.00019178,2]
[362897779,1748515832811,-400.0,0.00019178,2]
[362897780,1748515832820,-401.32394598,0.00019178,2]
[362897781,1748515832830,-403.63189248,0.00019178,2]
[362897782,1748515832839,-430.0,0.00019178,2]
[362897783,1748515832849,-400.0,0.00019178,2]
[362897784,1748515832858,-400.34684328,0.00019178,2]
[362897785,1748515832868,-400.0,0.00019178,2]
[362897786,1748515832877,-311.78853389,0.00019178,2]
[362897787,1748515832886,-445.72572788,0.00019178,2]
[362897788,1748515832896,-430.0,0.00019178,2]
[362897789,1748515832906,-394.71179927,0.00019178,2]
[362897790,1748515832916,-450.0,0.00019178,2]
[362897791,1748515832925,-430.0,0.00019178,2]
[362897792,1748515832934,-430.0,0.00019178,2]
[362897793,1748515832944,-402.79930126,0.00019178,2]
[362897794,1748515832954,-450.0,0.00019178,2]
[362897795,1748515832963,-251.38189728,0.00019178,2]
[362897796,1748515832972,-450.0,0.00019178,2]
[362897797,1748515832982,-327.36227462,0.00019178,2]
[362897798,1748515832991,-450.0,0.00019178,2]
[362897799,1748515833001,-430.0,0.00019178,2]
[362897800,1748515833010,-430.0,0.00019178,2]
[362897801,1748515833019,-430.0,0.00019178,2]
[362897802,1748515833032,-261.92,0.00019178,2]
[362897803,1748515833042,-430.0,0.00019178,2]
[362897804,1748515833053,-309.41176861,0.00019178,2]
[362897805,1748515833063,-350.0,0.00019178,2]
[362897806,1748515833072,-400.0,0.00019178,2]
[362897807,1748515833082,-471.72148555,0.00019178,2]
[362897808,1748515833091,-270.67325098,0.00019178,2]
[362897809,1748515833101,-450.0,0.00019178,2]
[362897810,1748515833112,-350.0,0.00019178,2]
[362897811,1748515833122,-403.2068723,0.00019178,2]
[362897812,1748515833132,-430.0,0.00019178,2]
[362897813,1748515833142,-355.98,0.00019178,2]
[362897814,1748515833151,-350.0,0.00019178,2]
[362897815,1748515833161,-402.91591186,0.00019178,2]
[362897816,1748515833171,-489.79383217,0.00019178,2]
[362897817,1748515833182,-450.0,0.00019178,2]
[362897818,1748515833192,-464.47531691,0.00019178,2]
[362897819,1748515833202,-450.0,0.00019178,2]
[362897820,1748515833318,-358.78897994,0.00019178,2]
[362897821,1748515833358,-450.97233275,0.00019178,2]
[362897822,1748515833368,-354.62863493,0.00019178,2]
[362897823,1748515833378,-353.01183693,0.00019178,2]
[362897824,1748515833388,-450.0,0.00019178,2]
[362897825,1748515833398,-450.0,0.00019178,2]
[362897826,1748515833408,-355.83676872,0.00019178,2]
[362897827,1748515833417,-430.0,0.00019178,2]
[362897828,1748515833429,-430.0,0.00019178,2]
[362897829,1748515833439,-386.64754362,0.00019178,2]
[362897830,1748515833449,-430.0,0.00019178,2]
[362897831,1748515833461,-351.41348252,0.00019178,2]
[362897832,1748515833471,-450.0,0.00019178,2]
[362897833,1748515833481,-430.0,0.00019178,2]
[362897834,1748515833491,-350.0,0.00019178,2]
[362897835,1748515833502,-430.0,0.00019178,2]
[362897836,1748515833512,-430.0,0.00019178,2]
[362897837,1748515833522,-430.0,0.00019178,2]
[362897838,1748515833532,-430.0,0.00019178,2]
[362897839,1748515833541,-430.0,0.00019178,2]
[362897840,1748515833551,-430.0,0.00019178,2]
[362897841,1748515833562,-430.0,0.00019178,2]
[362897842,1748515833572,-450.0,0.00019178,2]
[362897843,1748515833582,-351.57944382,0.00019178,2]
[362897844,1748515833592,-430.0,0.00019178,2]
[362897845,1748515833602,-350.0,0.00019178,2]
[362897846,1748515833612,-450.0,0.00019178,2]
[362897847,1748515833623,-430.0,0.00019178,2]
[362897848,1748515833633,-450.0,0.00019178,2]
[362897849,1748515833644,-430.0,0.00019178,2]
[362897850,1748515833654,-430.0,0.00019178,2]
[362897851,1748515833665,-1000.0,0.00019178,2]
[362897852,1748515833675,-403.01610068,0.00019178,2]
[362897853,1748515833686,-430.0,0.00019178,2]
[362897854,1748515833697,-430.0,0.00019178,2]
[362897855,1748515833706,-430.0,0.00019178,2]
[362897856,1748515833719,-350.0,0.00019178,2]
[362897857,1748515833730,-430.0,0.00019178,2]
[362897858,1748515833741,-430.0,0.00019178,2]
[362897859,1748515833751,-272.19913309,0.00019178,2]
[362897860,1748515833761,-430.0,0.00019178,2]
[362897861,1748515833771,-430.0,0.00019178,2]
[362897862,1748515833780,-455.32151152,0.00019178,2]
[362897863,1748515833790,-457.37422099,0.00019178,2]
[362897864,1748515833800,-430.0,0.00019178,2]
[362897865,1748515833810,-402.62254269,0.00019178,2]
[362897866,1748515833819,-354.78945124,0.00019178,2]
[362897867,1748515833829,-430.0,0.00019178,2]
[362897868,1748515833839,-430.0,0.00019178,2]
[362897869,1748515833850,-430.0,0.00019178,2]
[362897870,1748515833860,-507.16635689,0.00019178,2]
[362897871,1748515833871,-457.51563763,0.00019178,2]
[362897872,1748515833880,-430.0,0.00019178,2]
[362897873,1748515833890,-430.0,0.00019178,2]
[362897874,1748515833899,-450.0,0.00019178,2]
[362897875,1748515833908,-430.0,0.00019178,2]
[362897876,1748515833918,-263.31337035,0.00019178,2]
[362897877,1748515833929,-430.0,0.00019178,2]
[362897878,1748515833939,-430.0,0.00019178,2]
[362897879,1748515833949,-430.0,0.00019178,2]
[362897880,1748515833959,-430.0,0.00019178,2]
[362897881,1748515833969,-430.0,0.00019178,2]
[362897882,1748515833979,-450.0,0.00019178,2]
[362897883,1748515833990,-453.72519588,0.00019178,2]
[362897884,1748515833999,-404.37917613,0.00019178,2]
[362897885,1748515834010,-451.84824957,0.00019178,2]
[362897886,1748515834020,-430.0,0.00019178,2]
[362897887,1748515834031,-453.78701563,0.00019178,2]
[362897888,1748515834043,-450.0,0.00019178,2]
[362897889,1748515834053,-430.0,0.00019178,2]
[362897890,1748515834063,-453.90236767,0.00019178,2]
[362897891,1748515834072,-430.0,0.00019178,2]
[362897892,1748515834082,-457.19320164,0.00019178,2]
[362897893,1748515834092,-430.0,0.00019178,2]
[362897894,1748515834102,-400.0,0.00019178,2]
[362897895,1748515834112,-451.8245735,0.00019178,2]
[362897896,1748515834123,-500.0,0.00019178,2]
[362897897,1748515834134,-500.0,0.00019178,2]
[362897898,1748515834143,-500.0,0.00019178,2]